bitfinex/quotes_SOLUSD_20251124
["timestamp","ask_amount","ask_price","bid_price","bid_amount"]
[1763977587806,0.96848928,129.34,129.33,48.19527519]
[1763977587990,0.25848928,129.34,129.33,48.19527519]
[1763977588306,0.25848928,129.34,129.33,55.92743323]
[1763977588678,0.25848928,129.34,129.33,47.97917519]
[1763977589894,0.96848928,129.34,129.33,47.97917519]
[1763977591106,5.28212133,129.34,129.32,47.97917519]
[1763977591408,0.71,129.33,129.32,51.41917519]
[1763977591902,0.25848928,129.34,129.32,51.41917519]
[1763977592200,0.96848928,129.34,129.32,51.41917519]
[1763977593587,0.71,129.33,129.32,51.41917519]
[1763977595002,0.71,129.33,129.32,3.44]
[1763977595202,12.73029573,129.33,129.3,47.97917519]
[1763977595386,12.73029573,129.33,129.3,3.44]
[1763977595709,0.71,129.32,129.3,3.44]
[1763977595888,0.96848928,129.34,129.3,16.12029573]
[1763977596199,0.25848928,129.34,129.31,0.66]
[1763977596410,0.25848928,129.34,129.32,3.44]
[1763977596787,0.96848928,129.34,129.32,3.44]
[1763977597105,0.25848928,129.34,129.32,3.44]
[1763977600206,0.25848928,129.34,129.32,153.41917519]
[1763977600519,0.25848928,129.34,129.33,0.66]
[1763977600691,0.25848928,129.34,129.33,48.63917519]
[1763977602081,0.25848928,129.34,129.33,47.97917519]
[1763977603292,0.96848928,129.34,129.33,47.97917519]
[1763977604099,0.25848928,129.34,129.33,47.97917519]
[1763977604686,0.96848928,129.34,129.33,47.97917519]
[1763977605191,0.97508921,129.34,129.33,47.97917519]
[1763977605906,12.99538494,129.34,129.28,47.97917519]
[1763977606109,12.02029573,129.32,129.28,3.44]
[1763977606407,0.72,129.33,129.28,3.44]
[1763977606617,12.02029573,129.32,129.28,3.44]
[1763977607006,0.72,129.31,129.28,3.44]
[1763977608217,12.74029573,129.31,129.28,3.44]
[1763977608416,0.72,129.3,129.28,3.44]
[1763977610799,0.72,129.3,129.28,2.5378]
[1763977612202,0.72,129.3,129.28,50.51697519]
[1763977612787,0.26508921,129.34,129.29,0.72]
[1763977612788,5.03734828,129.33,129.29,0.72]
[1763977613107,0.72,129.33,129.29,0.72]
[1763977613412,0.72,129.32,129.3,3.44]
[1763977613797,22.43830828,129.31,129.28,51.41917519]
[1763977614293,0.72,129.3,129.28,51.41917519]
[1763977615116,18.12096,129.31,129.28,52.13917519]
[1763977615291,18.84096,129.31,129.28,51.41917519]
[1763977615491,0.72,129.31,129.28,52.13917519]
[1763977616210,4.31734828,129.32,129.28,52.13917519]
[1763977616398,0.72,129.32,129.28,52.13917519]
[1763977616593,22.70339749,129.34,129.29,0.72]
[1763977616891,0.72,129.33,129.3,3.44]
[1763977617305,18.84096,129.33,129.3,3.44]
[1763977619707,0.72,129.32,129.3,3.44]
[1763977620827,5.03734828,129.32,129.29,47.97917519]
[1763977621133,23.20336068,129.31,129.27,51.41917519]
[1763977621298,19.6060124,129.31,129.27,52.13917519]
[1763977621598,0.72,129.3,129.27,51.41917519]
[1763977621803,0.72,129.3,129.27,52.13917519]
[1763977622003,0.72,129.3,129.27,51.41917519]
[1763977622232,22.43830828,129.28,129.24,47.97917519]
[1763977622403,18.12096,129.27,129.25,3.44]
[1763977622606,0.72,129.26,129.21,5.03734828]
[1763977622908,5.03734828,129.26,129.22,3.44]
[1763977623422,0.72,129.25,129.22,3.44]
[1763977623720,0.72,129.25,129.22,7.75734828]
[1763977623888,18.12096,129.28,129.23,0.72]
[1763977624089,18.84096,129.3,129.26,4.31734828]
[1763977624298,18.12096,129.29,129.26,7.75734828]
[1763977624500,18.84096,129.29,129.26,16.18732685]
[1763977625005,0.1449133,129.27,129.26,16.18732685]
[1763977625211,0.1449133,129.27,129.26,3.44]
[1763977625424,0.8649133,129.27,129.26,3.44]
[1763977627334,0.1449133,129.27,129.26,3.44]
[1763977627538,0.1449133,129.27,129.24,3.44]
[1763977627844,0.1449133,129.27,129.24,4.16]
[1763977628650,0.8649133,129.27,129.24,3.44]
[1763977628947,8.54380652,129.27,129.24,3.44]
[1763977629436,0.72,129.26,129.22,11.83889322]
[1763977629733,0.72,129.26,129.22,161.81806841]
[1763977629944,0.1449133,129.27,129.25,7.67889322]
[1763977630113,0.1449133,129.27,129.26,7.67889322]
[1763977630415,0.1449133,129.27,129.26,8.39889322]
[1763977632715,0.1449133,129.27,129.26,66.30905767]
[1763977633438,0.1449133,129.27,129.26,56.52022998]
[1763977634012,0.1449133,129.27,129.26,56.37806841]
[1763977635333,0.1449133,129.27,129.26,56.52022998]
[1763977635755,0.1449133,129.27,129.26,64.25657533]
[1763977635939,0.1614068,129.3,129.28,0.14216157]
[1763977636239,0.1614068,129.3,129.29,11.78889322]
[1763977636929,0.8414068,129.3,129.29,3.44]
[1763977637515,0.1614068,129.3,129.29,3.44]
[1763977637917,0.8414068,129.3,129.29,3.44]
[1763977638125,0.8414068,129.3,129.27,58.64301988]
[1763977639135,0.1614068,129.3,129.28,8.34889322]
[1763977639444,0.1614068,129.3,129.29,7.67889322]
[1763977639740,0.1614068,129.3,129.29,8.34889322]
[1763977640644,0.1614068,129.3,129.29,11.78889322]
[1763977641359,0.15154151,129.32,129.3,0.67]
[1763977641526,0.15154151,129.32,129.31,11.26105479]
[1763977641726,0.15154151,129.32,129.31,58.47270931]
[1763977641950,0.15154151,129.32,129.31,59.14270931]
[1763977642258,8.51043473,129.32,129.31,2.9]
[1763977642447,18.12096,129.29,129.22,0.67]
[1763977642635,7.67889322,129.27,129.22,0.67]
[1763977642840,7.67889322,129.26,129.22,0.67]
[1763977643074,7.67889322,129.26,129.22,4.11]
[1763977643355,7.67889322,129.27,129.22,11.78889322]
[1763977643541,7.67889322,129.25,129.22,3.44]
[1763977643739,7.67889322,129.25,129.2,2.34]
[1763977643944,8.25889322,129.25,129.2,10.68889322]
[1763977644150,0.58,129.25,129.21,0.67]
[1763977645026,0.15739665,129.22,129.21,0.67]
[1763977645226,0.15739665,129.22,129.2,2.34]
[1763977645648,0.15739665,129.22,129.2,3.01]
[1763977647127,0.15739665,129.22,129.2,2.34]
[1763977647325,0.58,129.21,129.2,0.2]
[1763977647624,8.25889322,129.21,129.2,0.2]
[1763977649242,0.58,129.21,129.2,0.2]
[1763977649446,8.25889322,129.21,129.2,0.2]
[1763977650536,26.37985322,129.21,129.2,0.2]
[1763977650939,25.79985322,129.21,129.2,0.2]
[1763977651138,26.37985322,129.21,129.2,0.2]
[1763977653330,0.15739665,129.22,129.2,0.2]
[1763977653535,0.15739665,129.22,129.2,8.54889322]
[1763977653955,18.27835665,129.22,129.2,0.87]
[1763977654166,18.85835665,129.22,129.2,0.2]
[1763977654375,8.41628987,129.22,129.2,0.2]
[1763977654546,0.15739665,129.22,129.2,0.2]
[1763977654750,18.12096,129.21,129.2,0.2]
[1763977655584,7.83628987,129.22,129.2,0.2]
[1763977655754,25.79985322,129.21,129.2,0.2]
[1763977656069,26.37985322,129.21,129.2,0.2]
[1763977657064,27.14490562,129.21,129.2,0.2]
[1763977657579,19.4660124,129.21,129.2,0.2]
[1763977657747,27.14490562,129.21,129.2,0.2]
[1763977658687,0.15739665,129.22,129.2,0.2]
[1763977658851,0.15739665,129.22,129.2,0.87]
[1763977659054,18.27835665,129.22,129.2,8.54889322]
[1763977659485,0.15739665,129.22,129.2,7.87889322]
[1763977659660,0.15739665,129.22,129.21,8.34889322]
[1763977660448,0.15739665,129.22,129.21,8.49105479]
[1763977660862,0.15739665,129.22,129.21,0.67]
[1763977661148,0.15739665,129.22,129.2,33.24882769]
[1763977661452,18.12096,129.21,129.2,0.2]
[1763977662475,8.44394562,129.21,129.2,0.2]
[1763977662859,0.7650524,129.21,129.2,0.2]
[1763977663367,18.12096,129.17,129.12,0.87]
[1763977663578,0.14216157,129.2,129.12,0.87]
[1763977663579,18.12096,129.18,129.12,0.87]
[1763977663759,18.12096,129.18,129.12,0.2]
[1763977663959,25.79985322,129.18,129.13,0.67]
[1763977664163,25.97985322,129.18,129.13,0.67]
[1763977664565,18.12096,129.16,129.13,0.67]
[1763977665191,0.14224064,129.14,129.13,0.67]
[1763977665503,0.14224064,129.14,129.13,62.77]
[1763977665794,0.00224064,129.14,129.13,70.44889322]
[1763977666094,0.00224064,129.14,129.13,8.34889322]
[1763977668888,0.00224064,129.14,129.13,8.49105479]
[1763977669187,0.00224064,129.14,129.13,16.2351886]
[1763977669363,0.00224064,129.14,129.13,26.02401629]
[1763977670285,0.00224064,129.14,129.13,18.27988248]
[1763977670665,0.00224064,129.14,129.13,26.02401629]
[1763977674793,0.16511509,129.15,129.14,9.93098926]
[1763977674989,0.1441963,129.16,129.15,17.60988248]
[1763977675163,0.0041963,129.16,129.15,21.70988248]
[1763977675362,0.0041963,129.16,129.15,29.45281705]
[1763977675594,0.14449306,129.17,129.16,72.02679296]
[1763977675772,0.14449306,129.17,129.16,183.13991968]
[1763977675975,0.14449306,129.17,129.16,182.36568618]
[1763977677687,0.14449306,129.17,129.16,190.10802126]
[1763977679196,0.14013461,129.21,129.18,51.31194926]
[1763977679403,0.14013461,129.21,129.19,10.59098926]
[1763977679692,0.1,129.27,129.21,0.14216157]
[1763977679908,0.1,129.27,129.22,9.78882769]
[1763977680086,0.1,129.27,129.22,18.26988248]
[1763977680795,0.1,129.27,129.26,0.14216157]
[1763977681014,0.1,129.4,129.29,18.12096]
[1763977681015,0.69,129.35,129.29,18.12096]
[1763977681196,0.69,129.38,129.33,7.67889322]
[1763977681371,0.79,129.34,129.32,3.46]
[1763977681572,8.46889322,129.34,129.3,3.46]
[1763977681769,0.7650524,129.33,129.3,3.46]
[1763977682009,0.69,129.32,129.3,3.46]
[1763977682508,0.69,129.32,129.28,11.13889322]
[1763977682725,0.7650524,129.33,129.28,3.46]
[1763977682917,0.1,129.34,129.33,0.14216157]
[1763977683078,0.1,129.39,129.33,21.06988248]
[1763977683276,0.1,129.39,129.38,7.67889322]
[1763977683605,0.1,129.39,129.38,11.13889322]
[1763977683781,0.1,129.39,129.38,11.94105479]
[1763977685074,0.2667168,129.39,129.38,19.67022467]
[1763977685300,0.26665542,129.4,129.39,0.14216157]
[1763977685496,0.26061842,129.41,129.4,9.78882769]
[1763977685797,0.26061842,129.41,129.4,25.85569618]
[1763977686796,0.26061842,129.41,129.4,10.44882769]
[1763977686992,0.26061842,129.41,129.4,0.14216157]
[1763977687192,0.26061842,129.41,129.4,3.46]
[1763977687502,0.26061842,129.41,129.4,11.13889322]
[1763977688704,0.95061842,129.41,129.38,12.0019048]
[1763977688910,0.95061842,129.41,129.39,3.46]
[1763977690082,0.69,129.4,129.39,3.46]
[1763977690587,0.26061842,129.41,129.39,3.46]
[1763977690788,0.95061842,129.41,129.39,3.46]
[1763977691386,0.69,129.4,129.39,3.46]
[1763977691882,0.69,129.4,129.37,3.46]
[1763977692101,12.0019048,129.38,129.29,0.66]
[1763977692291,12.0019048,129.38,129.33,12.0019048]
[1763977692603,0.69,129.37,129.34,3.46]
[1763977694384,28.17040611,129.41,129.36,12.0019048]
[1763977694385,19.07157842,129.41,129.36,12.0019048]
[1763977694590,19.83663082,129.41,129.38,12.0019048]
[1763977695125,0.69,129.4,129.38,12.0019048]
[1763977695592,0.69,129.4,129.37,15.4619048]
[1763977697116,1.02567082,129.41,129.37,15.4619048]
[1763977697422,0.26061842,129.41,129.39,12.0019048]
[1763977697713,0.26061842,129.41,129.4,15.4619048]
[1763977698521,0.26061842,129.41,129.4,17.07686389]
[1763977698920,0.26061842,129.41,129.4,15.4619048]
[1763977699934,0.26061842,129.41,129.4,16.1619048]
[1763977700493,0.26061842,129.41,129.4,24.80483916]
[1763977700711,0.26061842,129.41,129.4,34.59366685]
[1763977701608,0.26061842,129.41,129.4,33.5828648]
[1763977701996,0.26061842,129.41,129.4,15.4619048]
[1763977702422,0.26061842,129.41,129.4,3.46]
[1763977702621,0.26061842,129.41,129.4,15.4619048]
[1763977703532,0.26061842,129.41,129.4,3.46]
[1763977704321,0.26061842,129.41,129.4,65.56]
[1763977705100,0.24964589,129.41,129.4,65.56]
[1763977706017,0.90964589,129.41,129.4,62.1]
[1763977707905,0.24964589,129.41,129.4,74.1019048]
[1763977709146,0.90964589,129.41,129.4,62.1]
[1763977709324,0.90964589,129.41,129.39,65.56]
[1763977709646,0.66,129.4,129.39,3.46]
[1763977711219,12.6619048,129.4,129.34,120.96312157]
[1763977711414,12.0019048,129.38,129.35,3.46]
[1763977711632,0.66,129.37,129.35,3.46]
[1763977711935,0.66,129.37,129.35,65.56]
[1763977712107,12.0019048,129.39,129.35,65.56]
[1763977712309,0.66,129.37,129.35,65.56]
[1763977712528,0.66,129.37,129.35,77.5619048]
[1763977712729,12.6619048,129.39,129.35,77.5619048]
[1763977712926,0.66,129.38,129.35,77.5619048]
[1763977713111,12.0019048,129.4,129.36,12.0019048]
[1763977713323,0.66,129.4,129.36,74.1019048]
[1763977713928,0.66,129.4,129.36,62.1]
[1763977713929,12.0019048,129.39,129.36,62.1]
[1763977714112,12.0019048,129.38,129.36,65.56]
[1763977714532,12.6619048,129.37,129.36,62.1]
[1763977714731,12.6619048,129.37,129.34,65.56]
[1763977714933,0.66,129.36,129.34,65.56]
[1763977716642,30.7828648,129.38,129.34,65.56]
[1763977716935,18.12096,129.38,129.34,77.5619048]
[1763977717140,0.66,129.37,129.34,77.5619048]
[1763977717440,12.6619048,129.4,129.36,12.0019048]
[1763977717636,0.66,129.39,129.37,3.44]
[1763977718426,1.4250524,129.39,129.37,3.44]
[1763977719540,13.4269572,129.39,129.37,3.44]
[1763977720322,0.66,129.38,129.37,3.44]
[1763977720733,12.6619048,129.38,129.37,3.44]
[1763977720928,12.6619048,129.38,129.3,0.7]
[1763977721136,12.0019048,129.36,129.32,12.0019048]
[1763977721517,12.6619048,129.36,129.32,0.7]
[1763977721821,12.6619048,129.36,129.32,12.7019048]
[1763977722042,12.0019048,129.36,129.31,21.56096]
[1763977722246,12.6619048,129.35,129.31,3.44]
[1763977722725,0.66,129.34,129.31,3.44]
[1763977723616,0.66,129.34,129.31,15.4419048]
[1763977723818,0.66,129.36,129.32,12.7019048]
[1763977724417,12.6619048,129.36,129.32,12.7019048]
[1763977725026,0.15654913,129.33,129.31,15.4419048]
[1763977725227,0.15654913,129.33,129.32,12.0019048]
[1763977725434,0.15654913,129.33,129.32,12.7019048]
[1763977725669,0.15654913,129.33,129.31,3.44]
[1763977725848,0.15654913,129.33,129.31,16.1419048]
[1763977726225,0.15654913,129.33,129.26,9.78882769]
[1763977726226,12.6819048,129.32,129.26,9.78882769]
[1763977726439,12.6819048,129.32,129.24,0.2]
[1763977726440,12.0019048,129.27,129.24,3.64]
[1763977727248,12.0019048,129.27,129.24,4.34]
[1763977727628,12.0019048,129.27,129.24,3.64]
[1763977727825,12.6819048,129.27,129.24,3.64]
[1763977728627,18.12096,129.3,129.24,3.64]
[1763977728628,12.0019048,129.28,129.24,3.64]
[1763977728828,12.6819048,129.28,129.24,3.64]
[1763977729028,12.0019048,129.27,129.24,3.64]
[1763977730439,12.0019048,129.28,129.24,15.6419048]
[1763977730766,12.6819048,129.28,129.24,3.64]
[1763977730952,12.0019048,129.26,129.24,0.2]
[1763977731255,12.0019048,129.25,129.24,0.2]
[1763977731645,12.6819048,129.25,129.24,0.2]
[1763977732645,0.68,129.25,129.24,0.2]
[1763977732959,12.6819048,129.25,129.24,0.2]
[1763977735679,0.68,129.25,129.24,0.2]
[1763977735965,12.6819048,129.25,129.24,0.2]
[1763977736973,12.0019048,129.25,129.22,61.0731]
[1763977737275,12.0019048,129.23,129.22,61.0731]
[1763977738290,30.8028648,129.24,129.22,61.0731]
[1763977738885,12.6819048,129.23,129.22,61.0731]
[1763977739454,22.47073249,129.23,129.19,3.44]
[1763977739777,12.0019048,129.2,129.16,4.14]
[1763977739979,0.68,129.22,129.16,4.14]
[1763977740148,12.0019048,129.2,129.16,4.14]
[1763977740645,12.0019048,129.19,129.16,4.14]
[1763977740848,12.6819048,129.2,129.16,4.14]
[1763977741072,12.0019048,129.2,129.17,0.7]
[1763977741479,12.6819048,129.2,129.16,3.44]
[1763977741661,12.0019048,129.2,129.17,0.7]
[1763977741855,0.68,129.21,129.17,0.7]
[1763977742052,12.0019048,129.2,129.17,0.7]
[1763977742856,12.7669572,129.23,129.18,12.0019048]
[1763977743055,0.7650524,129.23,129.2,12.0019048]
[1763977743260,0.7650524,129.23,129.2,12.7019048]
[1763977744782,0.68,129.25,129.2,12.7019048]
[1763977744783,0.7650524,129.25,129.22,12.0019048]
[1763977744974,0.7650524,129.25,129.22,64.5131]
[1763977745153,0.16705946,129.23,129.22,64.5131]
[1763977745350,0.16705946,129.23,129.22,65.2131]
[1763977746452,0.16705946,129.23,129.22,77.2150048]
[1763977747085,13.61401666,129.23,129.16,0.7]
[1763977747382,12.0019048,129.19,129.16,0.7]
[1763977748072,12.0019048,129.18,129.16,0.7]
[1763977748459,12.0019048,129.17,129.14,4.14]
[1763977748649,12.0019048,129.15,129.12,0.9]
[1763977748859,12.0019048,129.15,129.13,3.44]
[1763977750286,12.0019048,129.15,129.13,4.14]
[1763977750582,7.69415457,129.15,129.13,4.14]
[1763977751694,7.69415457,129.16,129.13,4.14]
[1763977751856,0.68,129.17,129.13,4.14]
[1763977752800,7.69415457,129.14,129.13,3.44]
[1763977753082,7.69415457,129.14,129.12,0.2]
[1763977753254,7.69415457,129.13,129.12,0.2]
[1763977753454,7.69415457,129.14,129.12,0.2]
[1763977753883,7.69415457,129.15,129.12,0.2]
[1763977754179,7.69415457,129.14,129.12,0.2]
[1763977754554,7.69415457,129.14,129.13,0.7]
[1763977754769,7.69415457,129.14,129.12,0.2]
[1763977755780,8.41415457,129.14,129.12,0.2]
[1763977755972,7.69415457,129.15,129.12,0.88]
[1763977756177,7.69415457,129.16,129.12,0.88]
[1763977756386,8.45920697,129.17,129.13,0.68]
[1763977756692,7.69415457,129.18,129.13,0.68]
[1763977756863,0.7650524,129.17,129.13,8.37415457]
[1763977757060,8.45920697,129.18,129.13,4.12]
[1763977757293,7.69415457,129.17,129.14,0.68]
[1763977757579,0.7650524,129.18,129.14,0.68]
[1763977757780,8.45920697,129.18,129.14,0.68]
[1763977758280,8.45920697,129.18,129.13,3.44]
[1763977758281,7.69415457,129.16,129.13,3.44]
[1763977758494,7.69415457,129.16,129.14,0.68]
[1763977759162,7.69415457,129.16,129.13,3.44]
[1763977759576,8.45920697,129.17,129.14,0.68]
[1763977759772,8.45920697,129.18,129.14,0.68]
[1763977759970,9.17920697,129.18,129.14,0.68]
[1763977760174,0.7650524,129.18,129.14,0.68]
[1763977760692,7.69415457,129.18,129.14,0.68]
[1763977760883,8.45920697,129.18,129.14,0.68]
[1763977761089,7.69415457,129.18,129.14,0.68]
[1763977763658,9.17920697,129.21,129.15,7.69415457]
[1763977764085,9.17920697,129.21,129.16,0.68]
[1763977764289,7.69415457,129.22,129.17,11.13415457]
[1763977764467,0.16705946,129.23,129.17,11.13415457]
[1763977764468,8.62626643,129.23,129.17,11.13415457]
[1763977764661,8.62626643,129.23,129.18,0.68]
[1763977764876,8.62626643,129.23,129.18,61.7531]
[1763977765189,0.14584254,129.2,129.19,0.68]
[1763977765360,0.14584254,129.2,129.19,61.7531]
[1763977766471,0.16299693,129.21,129.19,77.18779176]
[1763977766658,0.14219718,129.23,129.22,18.12096]
[1763977766857,0.14219718,129.23,129.22,26.49511457]
[1763977767086,0.00219718,129.23,129.22,36.42610383]
[1763977767279,0.15224474,129.25,129.24,0.14216157]
[1763977767479,0.15224474,129.25,129.24,11.29631614]
[1763977767787,0.15224474,129.25,129.24,29.50268638]
[1763977768288,0.15224474,129.25,129.24,11.83415457]
[1763977769386,0.15224474,129.25,129.24,0.68]
[1763977769569,0.15224474,129.25,129.24,11.83415457]
[1763977770564,0.15224474,129.25,129.24,21.62298226]
[1763977770890,0.15224474,129.25,129.24,29.36052481]
[1763977771070,0.15224474,129.25,129.24,11.97631614]
[1763977771390,0.15224474,129.25,129.24,30.09727614]
[1763977771683,0.15224474,129.25,129.24,37.83481869]
[1763977772590,0.15224474,129.25,129.24,11.97631614]
[1763977774277,0.15224474,129.25,129.24,11.83415457]
[1763977774790,0.15224474,129.25,129.24,19.57169712]
[1763977774971,0.15224474,129.25,129.24,39.74394226]
[1763977775170,0.15224474,129.25,129.24,47.48148481]
[1763977775366,0.15647112,129.28,129.27,60.60916458]
[1763977775590,0.15647112,129.28,129.27,64.04916458]
[1763977779009,0.15647112,129.28,129.27,166.19132615]
[1763977779210,0.15647112,129.28,129.27,210.21101529]
[1763977780290,0.15647112,129.28,129.27,200.4221876]
[1763977781388,0.15647112,129.28,129.27,4.12]
[1763977781599,0.15647112,129.28,129.27,11.13415457]
[1763977781981,0.15647112,129.28,129.27,11.81415457]
[1763977782503,0.15647112,129.28,129.27,29.48089071]
[1763977783805,0.15647112,129.28,129.27,210.21101529]
[1763977785105,0.32568021,129.28,129.27,217.90516986]
[1763977785307,0.16442909,129.3,129.28,10.62098926]
[1763977785487,0.14121481,129.31,129.3,0.14216157]
[1763977785805,0.14121481,129.31,129.3,188.56644072]
[1763977786112,0.14121481,129.31,129.3,189.27644072]
[1763977786278,0.14121481,129.31,129.3,181.58228615]
[1763977786480,0.14121481,129.31,129.3,192.71644072]
[1763977787601,0.14121481,129.31,129.3,210.23922045]
[1763977789608,0.14121481,129.31,129.3,192.11826045]
[1763977789995,0.14121481,129.31,129.3,210.09705888]
[1763977790609,0.14121481,129.31,129.3,210.23922045]
[1763977791615,0.14121481,129.31,129.3,233.49922045]
[1763977792980,0.14121481,129.31,129.3,215.37826045]
[1763977793185,0.25374422,129.35,129.34,60.03231256]
[1763977793385,0.25374422,129.35,129.34,63.47231256]
[1763977793814,0.93374422,129.35,129.34,63.47231256]
[1763977794385,8.62789879,129.35,129.33,63.47231256]
[1763977794586,8.37415457,129.34,129.33,63.47231256]
[1763977795214,0.68,129.34,129.33,63.47231256]
[1763977798220,8.37415457,129.34,129.33,60.03231256]
[1763977798429,8.37415457,129.34,129.28,60.03231256]
[1763977798593,7.69415457,129.31,129.29,3.44]
[1763977798993,8.37415457,129.31,129.29,3.44]
[1763977799217,0.68,129.3,129.29,3.44]
[1763977799401,8.37415457,129.31,129.29,3.44]
[1763977799601,0.68,129.3,129.29,3.44]
[1763977800493,8.37415457,129.3,129.24,60.03231256]
[1763977800696,8.37415457,129.3,129.14,38.91750399]
[1763977800697,7.69415457,129.25,129.19,26.06885879]
[1763977800928,7.69415457,129.23,129.2,3.44]
[1763977801221,8.37415457,129.23,129.2,3.44]
[1763977801729,0.68,129.22,129.2,3.44]
[1763977801902,0.68,129.25,129.21,7.69415457]
[1763977802216,0.68,129.25,129.22,3.44]
[1763977802424,0.68,129.25,129.22,11.13415457]
[1763977802596,0.68,129.25,129.22,3.44]
[1763977803207,8.37415457,129.25,129.22,3.44]
[1763977803731,7.69415457,129.23,129.19,18.12096]
[1763977803901,8.37415457,129.22,129.2,3.44]
[1763977804210,7.69415457,129.21,129.2,3.44]
[1763977804418,8.37415457,129.21,129.2,3.44]
[1763977804720,8.37415457,129.24,129.2,3.44]
[1763977805021,0.68,129.24,129.2,11.84415457]
[1763977805196,0.68,129.24,129.19,18.12096]
[1763977805197,0.16694054,129.21,129.19,18.12096]
[1763977805397,0.16694054,129.21,129.19,21.56096]
[1763977805615,8.54109511,129.21,129.19,3.44]
[1763977805824,8.37415457,129.2,129.19,3.44]
[1763977806019,0.68,129.2,129.19,3.44]
[1763977807200,0.16694054,129.21,129.19,3.44]
[1763977808021,0.84694054,129.21,129.19,3.44]
[1763977808328,0.16694054,129.21,129.19,3.44]
[1763977808527,0.16694054,129.21,129.2,26.66727614]
[1763977808932,0.16694054,129.21,129.2,18.12096]
[1763977809629,0.84694054,129.21,129.2,21.56096]
[1763977810433,0.84694054,129.21,129.2,3.44]
[1763977811509,8.54109511,129.21,129.14,0.2]
[1763977811711,7.69415457,129.18,129.15,3.44]
[1763977811903,0.84694054,129.21,129.15,3.44]
[1763977811904,7.69415457,129.17,129.15,3.44]
[1763977812117,8.37415457,129.17,129.15,3.44]
[1763977812326,0.68,129.16,129.15,3.44]
[1763977812832,0.68,129.18,129.15,3.44]
[1763977813839,12.05073248,129.19,129.15,3.44]
[1763977813840,12.05073248,129.19,129.15,16.20073248]
[1763977814039,12.73073248,129.19,129.15,16.20073248]
[1763977814202,12.89767302,129.21,129.17,12.05073248]
[1763977814410,0.84694054,129.21,129.18,3.44]
[1763977814606,0.68,129.2,129.18,3.44]
[1763977814807,0.16694054,129.21,129.18,15.49073248]
[1763977815044,0.16694054,129.21,129.18,3.44]
[1763977815045,0.68,129.2,129.18,3.44]
[1763977815333,0.68,129.2,129.19,3.46]
[1763977816613,0.16694054,129.21,129.19,3.46]
[1763977816918,0.16694054,129.21,129.19,75.54304504]
[1763977817315,0.85694054,129.21,129.19,63.49231256]
[1763977819437,0.85694054,129.21,129.19,63.49231256]
[1763977820340,12.90767302,129.21,129.19,63.49231256]
[1763977820813,12.21767302,129.21,129.19,63.49231256]
[1763977821140,0.69,129.2,129.19,63.49231256]
[1763977821344,12.74073248,129.2,129.19,60.03231256]
[1763977821851,12.74073248,129.2,129.16,3.46]
[1763977822039,12.05073248,129.18,129.16,3.46]
[1763977822517,12.74073248,129.18,129.16,3.46]
[1763977824910,0.16694054,129.21,129.16,3.46]
[1763977825149,0.1462714,129.18,129.17,0.66]
[1763977825321,0.1462714,129.18,129.17,72.74304504]
[1763977825526,0.1462714,129.18,129.17,72.08304504]
[1763977827230,0.1462714,129.18,129.17,60.03231256]
[1763977827835,0.1462714,129.18,129.17,80.48478073]
[1763977828034,0.1462714,129.18,129.17,90.41576999]
[1763977828237,0.16687003,129.19,129.17,212.54428279]
[1763977828442,0.16687003,129.19,129.18,35.04580611]
[1763977828745,0.16687003,129.19,129.18,44.97679537]
[1763977829238,0.16687003,129.19,129.18,52.71793176]
[1763977830049,0.16687003,129.19,129.18,52.11093176]
[1763977831114,0.16687003,129.19,129.18,30.27137159]
[1763977831340,0.16687003,129.19,129.18,52.11093176]
[1763977831526,0.16687003,129.19,129.18,108.70324432]
[1763977831839,0.16687003,129.19,129.18,112.14324432]
[1763977834749,0.15735669,129.23,129.22,59.39980595]
[1763977834963,0.84735669,129.23,129.22,62.83980595]
[1763977836857,12.89808917,129.23,129.22,62.83980595]
[1763977837155,12.89808917,129.23,129.22,3.44]
[1763977838437,0.84735669,129.23,129.22,3.44]
[1763977838637,12.89808917,129.23,129.22,3.44]